[Event "23rd OIBM 2019"]
[Site "Gmund am Tegernsee"]
[Date "2019.10.30"]
[Round "5.35"]
[White "Smits, Mark"]
[Black "Atakisi, Umut"]
[Result "0-1"]
[ECO "B47"]
[WhiteElo "2132"]
[BlackElo "2393"]
[Annotator "NA"]
[PlyCount "58"]
[EventDate "2019.10.17"]
[EventType "swiss"]
[EventCountry "GER"]
[SourceTitle "playchess.com"]
[Source "ChessBase"]
[SourceQuality "1"]
[TimeControl "40/5400+30:1800+30"]

1. e4 {[%emt 0:00:00]} c5 {[%emt 0:00:00]} 2. Nf3 {[%emt 0:00:00]} e6 {[%emt 0:00:00]} 3. d4 {[%emt 0:00:00]} cxd4 {[%emt 0:00:00]} 4. Nxd4 {[%emt 0:00:03]} Nc6 {[%emt 0:00:00]} 5. Nc3 {[%emt 0:02:14]} Qc7 {[%emt 0:00:00]} 6. f4 {[%emt 0:00:37]} a6 {[%emt 0:00:20]} 7. Nxc6 {[%emt 0:00:28]} bxc6 {[%emt 0:00:06]} 8. e5 {[%emt 0:00:32]} d5 {[%emt 0:00:23]} 9. exd6 {[%emt 0:00:08]} Bxd6 {[%emt 0:00:06]} 10. Qf3 {[%emt 0:02:14]} Nf6 {[%emt 0:01:31]} 11. Bd3 {[%emt 0:00:13]} Bb7 {[%emt 0:02:55]} 12. Ne4 {[%emt 0:11:41]} Nxe4 {[%emt 0:04:55]} 13. Bxe4 {[%emt 0:00:49]} f5 {[%emt 0:11:14]} 14. Bd3 {[%emt 0:00:25]} c5 {[%emt 0:00:08]} 15. Qe2 {[%emt 0:00:42]} O-O {[%emt 0:00:29]} 16. O-O {[%emt 0:04:58]} e5 {[%emt 0:22:18]} 17. Qf2 {[%emt 0:10:44]} c4 {[%emt 0:07:28]} 18. Be2 {[%emt 0:00:32]} Rae8 {[%emt 0:01:19]} 19. Be3 {[%emt 0:26:32]} exf4 {[%emt 0:03:18]} 20. Bd4 {[%emt 0:00:05]} f3 {[%emt 0:04:54]} 21. gxf3 {[%emt 0:02:38]} Re6 {[%emt 0:05:29]} 22. Kh1 {[%emt 0:22:15]} Bxh2 {[%emt 0:09:31]} 23. Qxh2 {[%emt 0:00:31]} Qxh2+ {[%emt 0:00:06]} 24. Kxh2 {[%emt 0:00:04]} Rxe2+ {[%emt 0:00:06]} 25. Kg3 {[%emt 0:01:41]} f4+ {[%emt 0:00:32]} 26. Kh4 {[%emt 0:04:19]} Rh2+ {[%emt 0:00:19]} 27. Kg5 {[%emt 0:00:11]} h6+ {[%emt 0:01:42]} 28. Kg6 {[%emt 0:00:12]} Bc8 {[%emt 0:00:42]} 29. Bxg7 {[%emt 0:00:35]} Bf5# {[%emt 0:00:13]} 0-1

[Event "23rd OIBM 2019"]
[Site "Gmund am Tegernsee"]
[Date "2019.10.30"]
[Round "5.36"]
[White "Baum, Jonasz"]
[Black "Nehyba, Martin"]
[Result "0-1"]
[ECO "B33"]
[WhiteElo "2341"]
[BlackElo "2129"]
[Annotator "ChessBase"]
[PlyCount "104"]
[EventDate "2019.10.17"]
[EventType "swiss"]
[EventCountry "GER"]
[SourceTitle "playchess.com"]
[Source "ChessBase"]
[SourceQuality "1"]
[TimeControl "40/5400+30:1800+30"]

1. e4 {[%emt 0:00:00]} c5 {[%emt 0:00:09]} 2. Nf3 {[%emt 0:00:00]} e6 {[%emt 0:00:08]} 3. d4 {[%emt 0:00:00]} cxd4 {[%emt 0:00:04]} 4. Nxd4 {[%emt 0:00:00]} Nf6 {[%emt 0:00:07]} 5. Nc3 {[%emt 0:00:00]} Nc6 {[%emt 0:00:05]} 6. Ndb5 {[%emt 0:00:06]} d6 {[%emt 0:02:20]} 7. Bf4 {[%emt 0:00:10]} e5 {[%emt 0:00:06]} 8. Bg5 {[%emt 0:00:04]} a6 {[%emt 0:00:06]} 9. Na3 {[%emt 0:00:05]} b5 {[%emt 0:00:14]} 10. Bxf6 {[%emt 0:00:15]} gxf6 {[%emt 0:00:05]} 11. Nd5 {[%emt 0:00:04]} f5 {[%emt 0:00:07]} 12. c3 {[%emt 0:00:06]} Bg7 {[%emt 0:00:25]} 13. exf5 {[%emt 0:00:15]} Bxf5 {[%emt 0:06:55]} 14. Nc2 {[%emt 0:00:06]} O-O {[%emt 0:01:12]} 15. Nce3 {[%emt 0:00:04]} Be6 {[%emt 0:01:43]} 16. Bd3 {[%emt 0:00:07]} f5 {[%emt 0:02:27]} 17. O-O {[%emt 0:02:55]} Ne7 {[%emt 0:18:05]} 18. Nxe7+ {[%emt 0:00:46]} Qxe7 {[%emt 0:00:02]} 19. Bxf5 {[%emt 0:00:33]} Bxf5 {[%emt 0:09:56]} 20. Nxf5 {[%emt 0:00:06]} Qe6 {[%emt 0:00:08]} 21. Qd5 {[%emt 0:06:34]} Qxd5 {[%emt 0:06:20]} 22. Ne7+ {[%emt 0:00:21]} Kf7 {[%emt 0:00:01]} 23. Nxd5 {[%emt 0:00:06]} Rac8 {[%emt 0:00:10]} 24. a4 {[%emt 0:07:19]} Ke6 {[%emt 0:01:12]} 25. Rfd1 {[%emt 0:00:49]} a5 {[%emt 0:12:03]} 26. axb5 {[%emt 0:30:16]} Rc5 {[%emt 0:00:44]} 27. Ne3 {[%emt 0:12:47]} Rxb5 {[%emt 0:01:04]} 28. Nc4 {[%emt 0:05:45]} d5 {[%emt 0:05:00]} 29. Rxa5 {[%emt 0:00:25]} Rxa5 {[%emt 0:00:23]} 30. Nxa5 {[%emt 0:00:02]} Rb8 {[%emt 0:00:18]} 31. b3 {[%emt 0:18:14]} Rb5 {[%emt 0:03:29]} 32. b4 {[%emt 0:01:01]} e4 {[%emt 0:01:59]} 33. c4 {[%emt 0:08:33]} dxc4 {[%emt 0:01:01]} 34. Nxc4 {[%emt 0:00:06]} Rxb4 {[%emt 0:00:07]} 35. Ne3 {[%emt 0:00:17]} Ra4 {[%emt 0:01:35]} 36. g3 {[%emt 0:04:23]} Ra1 {[%emt 0:05:12]} 37. Rxa1 {[%emt 0:00:06]} Bxa1 {[%emt 0:00:04]} 38. Nc2 {[%emt 0:02:13]} Be5 {[%emt 0:01:16]} 39. Kf1 {[%emt 0:00:35]} Bc7 {[%emt 0:00:16]} 40. Ke2 {[%emt 0:00:36]} Bb6 {[%emt 0:00:08]} 41. Ne3 {[%emt 0:30:52]} Bc5 {[%emt 0:35:58]} 42. h3 {[%emt 0:00:32]} Ba7 {[%emt 0:00:33]} 43. Kd2 {[%emt 0:00:25]} Bb6 {[%emt 0:00:36]} 44. Ke2 {[%emt 0:01:59]} Ba7 {[%emt 0:00:07]} 45. h4 {[%emt 0:00:10]} Bc5 {[%emt 0:00:19]} 46. Kf1 {[%emt 0:00:09]} Bxe3 {[%emt 0:02:25]} 47. fxe3 {[%emt 0:01:18]} Kf5 {[%emt 0:00:08]} 48. h5 {[%emt 0:00:00]} Kg4 {[%emt 0:00:00]} 49. Kg2 {[%emt 0:00:00]} h6 {[%emt 0:00:00]} 50. Kh2 {[%emt 0:00:00]} Kf3 {[%emt 0:00:00]} 51. Kh3 {[%emt 0:00:00]} Kxe3 {[%emt 0:00:00]} 52. g4 {[%emt 0:00:00]} Kf3 {[%emt 0:00:00]} 0-1

[Event "23rd OIBM 2019"]
[Site "Gmund am Tegernsee"]
[Date "2019.10.30"]
[Round "5.37"]
[White "Renner, Kai"]
[Black "Singer, Christoph"]
[Result "1/2-1/2"]
[ECO "B04"]
[WhiteElo "2153"]
[BlackElo "2339"]
[Annotator "NA"]
[PlyCount "48"]
[EventDate "2019.10.17"]
[EventType "swiss"]
[EventCountry "GER"]
[SourceTitle "playchess.com"]
[Source "ChessBase"]
[SourceQuality "1"]
[TimeControl "40/5400+30:1800+30"]

1. e4 {[%emt 0:00:00]} Nf6 {[%emt 0:00:00]} 2. e5 {[%emt 0:00:00]} Nd5 {[%emt 0:00:00]} 3. d4 {[%emt 0:00:34]} d6 {[%emt 0:00:00]} 4. Nf3 {[%emt 0:00:32]} g6 {[%emt 0:00:34]} 5. c4 {[%emt 0:06:49]} Nb6 {[%emt 0:00:09]} 6. exd6 {[%emt 0:01:19]} cxd6 {[%emt 0:00:39]} 7. Be2 {[%emt 0:00:34]} Bg7 {[%emt 0:00:19]} 8. O-O {[%emt 0:01:06]} Bg4 {[%emt 0:04:37]} 9. Be3 {[%emt 0:05:40]} O-O {[%emt 0:03:35]} 10. Nc3 {[%emt 0:09:16]} Nc6 {[%emt 0:02:28]} 11. b3 {[%emt 0:02:21]} d5 {[%emt 0:21:15]} 12. c5 {[%emt 0:04:16]} Nc8 {[%emt 0:00:08]} 13. Rc1 {[%emt 0:08:30]} e6 {[%emt 0:02:36]} 14. Ne1 {[%emt 0:25:15]} Bxe2 {[%emt 0:03:37]} 15. Nxe2 {[%emt 0:00:15]} N8e7 {[%emt 0:02:52]} 16. Qd2 {[%emt 0:01:43]} Nf5 {[%emt 0:03:51]} 17. Nf3 {[%emt 0:00:50]} f6 {[%emt 0:13:49]} 18. Rfd1 {[%emt 0:03:24]} Rf7 {[%emt 0:11:15]} 19. a3 {[%emt 0:04:55]} Rd7 {[%emt 0:00:23]} 20. b4 {[%emt 0:01:47]} a6 {[%emt 0:00:05]} 21. Ng3 {[%emt 0:07:43]} Nfe7 {[%emt 0:07:53]} 22. a4 {[%emt 0:02:18]} a5 {[%emt 0:01:07]} 23. b5 {[%emt 0:00:08]} Nb4 {[%emt 0:00:01]} 24. Ne1 {[%emt 0:02:38]} e5 1/2-1/2

[Event "23rd OIBM 2019"]
[Site "Gmund am Tegernsee"]
[Date "2019.10.30"]
[Round "5.38"]
[White "Konik, Michael"]
[Black "Forchert, Martin"]
[Result "1/2-1/2"]
[ECO "B02"]
[WhiteElo "2126"]
[BlackElo "2335"]
[Annotator "NA"]
[PlyCount "54"]
[EventDate "2019.10.17"]
[EventType "swiss"]
[EventCountry "GER"]
[SourceTitle "playchess.com"]
[Source "ChessBase"]
[SourceQuality "1"]
[TimeControl "40/5400+30:1800+30"]

1. e4 {[%emt 0:00:00]} Nf6 {[%emt 0:00:00]} 2. Nc3 {[%emt 0:00:00]} d5 {[%emt 0:00:00]} 3. e5 {[%emt 0:00:00]} Nfd7 {[%emt 0:00:00]} 4. f4 {[%emt 0:00:01]} c5 {[%emt 0:00:12]} 5. Nf3 {[%emt 0:03:01]} Nc6 {[%emt 0:00:17]} 6. d4 {[%emt 0:02:51]} cxd4 {[%emt 0:01:46]} 7. Nxd4 {[%emt 0:03:19]} Nxd4 {[%emt 0:00:18]} 8. Qxd4 {[%emt 0:00:36]} e6 {[%emt 0:00:07]} 9. Qf2 {[%emt 0:06:34]} f6 {[%emt 0:05:59]} 10. Be3 {[%emt 0:15:38]} Bb4 {[%emt 0:01:00]} 11. Bd3 {[%emt 0:09:34]} O-O {[%emt 0:02:56]} 12. Qh4 {[%emt 0:02:49]} f5 {[%emt 0:00:55]} 13. Qxd8 {[%emt 0:00:41]} Rxd8 {[%emt 0:00:08]} 14. O-O {[%emt 0:00:25]} Nc5 {[%emt 0:13:03]} 15. Nb5 {[%emt 0:02:57]} Nxd3 {[%emt 0:01:42]} 16. cxd3 {[%emt 0:00:21]} Bd7 {[%emt 0:01:08]} 17. Nd4 {[%emt 0:06:26]} b6 {[%emt 0:04:01]} 18. Kf2 {[%emt 0:02:47]} Rac8 {[%emt 0:00:26]} 19. Rfc1 {[%emt 0:01:32]} Kf7 {[%emt 0:05:13]} 20. Rxc8 {[%emt 0:06:09]} Rxc8 {[%emt 0:00:08]} 21. Rc1 {[%emt 0:00:49]} Rxc1 {[%emt 0:00:34]} 22. Bxc1 {[%emt 0:00:08]} h6 {[%emt 0:00:34]} 23. Ke2 {[%emt 0:01:37]} Be7 {[%emt 0:02:01]} 24. Bd2 {[%emt 0:07:20]} g5 {[%emt 0:05:03]} 25. g3 {[%emt 0:01:07]} Bc5 {[%emt 0:08:35]} 26. Nb3 {[%emt 0:03:12]} Be7 {[%emt 0:01:06]} 27. Nd4 {[%emt 0:00:04]} Bc5 {[%emt 0:11:19]} 1/2-1/2

[Event "23rd OIBM 2019"]
[Site "Gmund am Tegernsee"]
[Date "2019.10.30"]
[Round "5.40"]
[White "Faerber, David"]
[Black "Freundorfer, Josef"]
[Result "1/2-1/2"]
[ECO "C77"]
[WhiteElo "2332"]
[BlackElo "2111"]
[Annotator "RC"]
[PlyCount "118"]
[EventDate "2019.10.17"]
[EventType "swiss"]
[EventCountry "GER"]
[SourceTitle "playchess.com"]
[Source "ChessBase"]
[SourceQuality "1"]
[TimeControl "40/5400+30:1800+30"]

1. e4 {[%emt 0:00:00]} e5 {[%emt 0:00:00]} 2. Nf3 {[%emt 0:00:00]} Nc6 {[%emt 0:00:00]} 3. Bb5 {[%emt 0:00:00]} a6 {[%emt 0:00:07]} 4. Ba4 {[%emt 0:00:00]} Nf6 {[%emt 0:00:14]} 5. d3 {[%emt 0:00:00]} Bc5 {[%emt 0:00:50]} 6. Nc3 {[%emt 0:04:16]} h6 {[%emt 0:05:24]} 7. h3 {[%emt 0:17:14]} d6 {[%emt 0:04:48]} 8. Bxc6+ {[%emt 0:02:10]} bxc6 {[%emt 0:00:11]} 9. Be3 {[%emt 0:01:40]} Bxe3 {[%emt 0:03:48]} 10. fxe3 {[%emt 0:00:27]} Qe7 {[%emt 0:02:11]} 11. Qe2 {[%emt 0:08:46]} a5 {[%emt 0:04:12]} 12. O-O {[%emt 0:14:04]} Rb8 {[%emt 0:13:16]} 13. Rab1 {[%emt 0:06:53]} O-O {[%emt 0:06:40]} 14. Kh1 {[%emt 0:12:24]} Re8 {[%emt 0:09:17]} 15. Nd2 {[%emt 0:07:34]} Be6 {[%emt 0:09:15]} 16. Nb3 {[%emt 0:06:55]} Ra8 {[%emt 0:02:14]} 17. Qf3 {[%emt 0:04:41]} d5 {[%emt 0:12:07]} 18. exd5 {[%emt 0:01:27]} cxd5 {[%emt 0:00:27]} 19. d4 {[%emt 0:00:05]} e4 {[%emt 0:04:47]} 20. Qe2 {[%emt 0:00:29]} Reb8 {[%emt 0:14:01]} 21. Nc5 {[%emt 0:00:25]} Bc8 {[%emt 0:00:13]} 22. Qf2 {[%emt 0:03:14]} Rb6 {[%emt 0:00:48]} 23. Qh4 {[%emt 0:01:01]} Rab8 {[%emt 0:00:35]} 24. b3 {[%emt 0:00:13]} Rd6 {[%emt 0:00:24]} 25. Kg1 {[%emt 0:01:21]} Be6 {[%emt 0:01:02]} 26. Ne2 {[%emt 0:01:24]} Re8 {[%emt 0:00:50]} 27. Qf2 {[%emt 0:01:21]} Nd7 {[%emt 0:00:36]} 28. Nxd7 {[%emt 0:00:45]} Bxd7 {[%emt 0:00:23]} 29. Kh2 {[%emt 0:00:44]} Bb5 {[%emt 0:01:05]} 30. Rbe1 {[%emt 0:01:17]} Rc6 {[%emt 0:00:17]} 31. Rc1 {[%emt 0:00:44]} Rd8 {[%emt 0:00:16]} 32. a4 {[%emt 0:00:58]} Ba6 {[%emt 0:00:07]} 33. Rfe1 {[%emt 0:00:11]} Rf6 {[%emt 0:00:55]} 34. Qh4 {[%emt 0:00:39]} Qd6+ {[%emt 0:00:49]} 35. Qg3 {[%emt 0:00:25]} g5 {[%emt 0:01:50]} 36. Qxd6 {[%emt 0:01:00]} Rdxd6 {[%emt 0:00:20]} 37. Nc3 {[%emt 0:00:40]} c6 {[%emt 0:00:32]} 38. Kg1 {[%emt 0:00:11]} Rf5 {[%emt 0:00:09]} 39. Ne2 {[%emt 0:02:07]} Kh7 {[%emt 0:02:12]} 40. Ng3 {[%emt 0:00:32]} Rff6 {[%emt 0:00:20]} 41. c4 {[%emt 0:02:20]} Kg6 {[%emt 0:20:11]} 42. Rf1 {[%emt 0:08:58]} h5 {[%emt 0:01:47]} 43. Rxf6+ {[%emt 0:04:51]} Rxf6 {[%emt 0:00:11]} 44. Nf1 {[%emt 0:00:55]} Bb7 {[%emt 0:03:54]} 45. Nd2 {[%emt 0:01:37]} h4 {[%emt 0:01:42]} 46. Nb1 {[%emt 0:03:50]} g4 {[%emt 0:01:52]} 47. hxg4 {[%emt 0:01:37]} Kg5 {[%emt 0:00:09]} 48. cxd5 {[%emt 0:02:00]} cxd5 {[%emt 0:00:13]} 49. Rc5 {[%emt 0:00:09]} Kxg4 {[%emt 0:00:41]} 50. Rxa5 {[%emt 0:02:28]} h3 {[%emt 0:01:27]} 51. Nd2 {[%emt 0:00:30]} Kg3 {[%emt 0:01:14]} 52. gxh3 {[%emt 0:00:05]} Rf2 53. Nf1+ {[%emt 0:00:18]} Kf3 {[%emt 0:00:52]} 54. Ra7 {[%emt 0:00:14]} Rg2+ {[%emt 0:01:01]} 55. Kh1 {[%emt 0:00:00]} Kf2 {[%emt 0:00:10]} 56. Rxb7 {[%emt 0:05:31]} Rg1+ {[%emt 0:00:09]} 57. Kh2 {[%emt 0:00:03]} Rg2+ {[%emt 0:00:07]} 58. Kh1 {[%emt 0:00:03]} Rg1+ {[%emt 0:00:08]} 59. Kh2 {[%emt 0:00:03]} Rg2+ {[%emt 0:00:09] Rb8} 1/2-1/2

[Event "23rd OIBM 2019"]
[Site "Gmund am Tegernsee"]
[Date "2019.10.30"]
[Round "5.41"]
[White "De Ruijter, Luuk"]
[Black "Wiest, Leonhard"]
[Result "1/2-1/2"]
[ECO "D02"]
[WhiteElo "2214"]
[BlackElo "2014"]
[Annotator "NA"]
[PlyCount "27"]
[EventDate "2019.10.17"]
[EventType "swiss"]
[EventCountry "GER"]
[SourceTitle "playchess.com"]
[Source "ChessBase"]
[SourceQuality "1"]
[TimeControl "40/5400+30:1800+30"]

1. d4 {[%emt 0:00:00]} d5 {[%emt 0:00:00]} 2. Nf3 {[%emt 0:00:00]} Nf6 {[%emt 0:00:00]} 3. c4 {[%emt 0:00:25]} e6 {[%emt 0:00:00]} 4. g3 {[%emt 0:00:11]} Bb4+ {[%emt 0:00:56]} 5. Bd2 {[%emt 0:00:22]} Be7 {[%emt 0:00:07]} 6. Qc2 {[%emt 0:00:17]} c6 {[%emt 0:00:59]} 7. Bg2 {[%emt 0:00:13]} O-O {[%emt 0:00:16]} 8. O-O {[%emt 0:00:19]} Nbd7 {[%emt 0:00:26]} 9. Rd1 {[%emt 0:01:40]} Ne4 {[%emt 0:05:02]} 10. Nc3 {[%emt 0:03:42]} Nxd2 {[%emt 0:02:03]} 11. Nxd2 {[%emt 0:00:18]} f5 {[%emt 0:00:09]} 12. cxd5 {[%emt 0:02:43]} exd5 {[%emt 0:02:54]} 13. a3 {[%emt 0:01:38]} f4 {[%emt 0:06:46]} 14. Nf3 {[%emt 0:02:39]} 1/2-1/2

[Event "23rd OIBM 2019"]
[Site "Gmund am Tegernsee"]
[Date "2019.10.30"]
[Round "5.42"]
[White "Thiel, Fabian"]
[Black "Guttenthaler, Franz"]
[Result "1/2-1/2"]
[ECO "E25"]
[WhiteElo "2109"]
[BlackElo "2328"]
[Annotator "NA"]
[PlyCount "51"]
[EventDate "2019.10.17"]
[EventType "swiss"]
[EventCountry "GER"]
[SourceTitle "playchess.com"]
[Source "ChessBase"]
[SourceQuality "1"]
[TimeControl "40/5400+30:1800+30"]

1. d4 {[%emt 0:00:00]} Nf6 {[%emt 0:00:00]} 2. c4 {[%emt 0:00:00]} e6 {[%emt 0:00:17]} 3. Nc3 {[%emt 0:00:00]} Bb4 {[%emt 0:00:55]} 4. f3 {[%emt 0:00:00]} d5 {[%emt 0:01:32]} 5. a3 {[%emt 0:00:00]} Bxc3+ {[%emt 0:00:11]} 6. bxc3 {[%emt 0:00:03]} c5 {[%emt 0:05:41]} 7. cxd5 {[%emt 0:00:42]} exd5 {[%emt 0:00:14]} 8. e3 {[%emt 0:01:03]} O-O {[%emt 0:01:53]} 9. Bd3 {[%emt 0:00:27]} b6 {[%emt 0:00:51]} 10. Ne2 {[%emt 0:00:49]} Ba6 {[%emt 0:00:33]} 11. Ng3 {[%emt 0:04:57]} Re8 {[%emt 0:05:01]} 12. O-O {[%emt 0:01:31]} Bxd3 {[%emt 0:14:04]} 13. Qxd3 {[%emt 0:01:46]} Nc6 {[%emt 0:00:09]} 14. Bb2 {[%emt 0:02:49]} Qc7 {[%emt 0:05:11]} 15. Rae1 {[%emt 0:05:00]} Rad8 {[%emt 0:00:57]} 16. e4 {[%emt 0:10:07]} Na5 {[%emt 0:07:46]} 17. e5 {[%emt 0:04:15]} Nd7 {[%emt 0:00:08]} 18. Nf5 {[%emt 0:02:10]} Nf8 {[%emt 0:06:30]} 19. f4 {[%emt 0:11:28]} Nc4 {[%emt 0:08:29]} 20. Bc1 {[%emt 0:02:46]} Qd7 {[%emt 0:00:42]} 21. Rf3 {[%emt 0:23:43]} Kh8 {[%emt 0:00:35]} 22. Rg3 {[%emt 0:02:49]} g6 {[%emt 0:00:22]} 23. Ne3 {[%emt 0:04:11]} Nxe3 {[%emt 0:08:33]} 24. Bxe3 {[%emt 0:00:21]} c4 {[%emt 0:00:09]} 25. Qc2 {[%emt 0:01:50]} f5 {[%emt 0:04:00]} 26. exf6 {[%emt 0:05:39]} 1/2-1/2

[Event "23rd OIBM 2019"]
[Site "Gmund am Tegernsee"]
[Date "2019.10.31"]
[Round "6.3"]
[White "Azarov, Sergei"]
[Black "Mons, Leon"]
[Result "1-0"]
[ECO "B01"]
[WhiteElo "2586"]
[BlackElo "2552"]
[Annotator "RC"]
[PlyCount "113"]
[EventDate "2019.10.17"]
[EventType "swiss"]
[EventCountry "GER"]
[SourceTitle "playchess.com"]
[Source "ChessBase"]
[SourceQuality "1"]
[TimeControl "40/5400+30:1800+30"]

1. e4 {[%emt 0:00:00]} d5 {[%emt 0:00:00]} 2. exd5 {[%emt 0:00:00]} Qxd5 {[%emt 0:00:00]} 3. Nc3 {[%emt 0:00:22]} Qd8 {[%emt 0:00:00]} 4. d4 {[%emt 0:00:56]} Nf6 {[%emt 0:00:00]} 5. Bg5 {[%emt 0:04:46]} c6 {[%emt 0:01:29]} 6. Bc4 {[%emt 0:04:25]} Bf5 {[%emt 0:05:24]} 7. Nf3 {[%emt 0:04:42]} e6 {[%emt 0:01:38]} 8. O-O {[%emt 0:10:19]} Be7 {[%emt 0:07:29]} 9. Qe2 {[%emt 0:05:48]} O-O {[%emt 0:04:43]} 10. Rad1 {[%emt 0:02:30]} Nbd7 {[%emt 0:04:30]} 11. Bb3 {[%emt 0:16:52]} Nb6 {[%emt 0:07:09]} 12. Rfe1 {[%emt 0:02:13]} Nbd5 {[%emt 0:09:25]} 13. Nxd5 {[%emt 0:04:55]} cxd5 {[%emt 0:00:17]} 14. Ne5 {[%emt 0:01:04]} h6 {[%emt 0:03:03]} 15. Bh4 {[%emt 0:03:05]} Ne4 {[%emt 0:03:25]} 16. Bxe7 {[%emt 0:01:55]} Qxe7 {[%emt 0:00:05]} 17. c3 {[%emt 0:00:24]} Nd6 {[%emt 0:03:52]} 18. Bc2 {[%emt 0:01:41]} Bxc2 {[%emt 0:03:18]} 19. Qxc2 {[%emt 0:00:04]} Qc7 {[%emt 0:02:33]} 20. f3 {[%emt 0:02:26]} Nc4 {[%emt 0:00:54]} 21. Nd3 {[%emt 0:02:54]} Rfe8 {[%emt 0:04:15]} 22. Qf2 {[%emt 0:00:37]} Qa5 {[%emt 0:01:55]} 23. a3 {[%emt 0:00:32]} Qb5 {[%emt 0:01:48]} 24. Re2 {[%emt 0:01:52]} Rac8 {[%emt 0:03:27]} 25. h4 {[%emt 0:00:52]} Qb3 {[%emt 0:01:20]} 26. Rde1 {[%emt 0:01:16]} Qb6 {[%emt 0:08:18]} 27. g4 {[%emt 0:01:55]} Qd6 {[%emt 0:05:07]} 28. h5 {[%emt 0:03:24]} Re7 {[%emt 0:03:11]} 29. Kg2 {[%emt 0:00:58]} Rce8 {[%emt 0:00:38]} 30. f4 {[%emt 0:04:24]} f6 {[%emt 0:01:18]} 31. Qg3 {[%emt 0:01:31]} b6 {[%emt 0:01:12]} 32. Kh2 {[%emt 0:01:20]} Qc7 {[%emt 0:01:12]} 33. g5 {[%emt 0:05:41]} fxg5 {[%emt 0:01:07]} 34. fxg5 {[%emt 0:00:06]} Qxg3+ {[%emt 0:00:40]} 35. Kxg3 {[%emt 0:00:04]} hxg5 {[%emt 0:00:07]} 36. Ne5 {[%emt 0:04:01]} Nxe5 {[%emt 0:01:18]} 37. Rxe5 {[%emt 0:00:08]} b5 {[%emt 0:02:04]} 38. Kg4 {[%emt 0:01:17]} a5 {[%emt 0:00:30]} 39. Kxg5 {[%emt 0:01:11]} Kh7 {[%emt 0:00:53]} 40. R1e3 {[%emt 0:02:50]} b4 {[%emt 0:06:30]} 41. cxb4 {[%emt 0:11:01]} axb4 {[%emt 0:00:02]} 42. a4 {[%emt 0:00:11]} Rc7 {[%emt 0:03:47]} 43. Rxe6 {[%emt 0:01:14]} Rxe6 {[%emt 0:00:08]} 44. Rxe6 {[%emt 0:00:04]} Rc2 {[%emt 0:01:18]} 45. b3 {[%emt 0:01:01]} Rc3 {[%emt 0:00:45]} 46. Rb6 {[%emt 0:01:19]} Rxb3 {[%emt 0:00:15]} 47. Kf5 {[%emt 0:00:40]} Rb1 {[%emt 0:06:28]} 48. Ke5 {[%emt 0:02:22]} b3 {[%emt 0:00:05]} 49. Kxd5 {[%emt 0:05:07]} b2 {[%emt 0:00:04]} 50. a5 {[%emt 0:01:32]} Ra1 {[%emt 0:01:05]} 51. Rxb2 {[%emt 0:00:08]} Rxa5+ {[%emt 0:00:03]} 52. Ke6 {[%emt 0:01:17]} Rxh5 {[%emt 0:00:05]} 53. d5 {[%emt 0:00:06]} Rh1 {[%emt 0:00:48]} 54. Re2 {[%emt 0:01:48]} g5 {[%emt 0:03:33]} 55. d6 {[%emt 0:01:28]} Rd1 {[%emt 0:00:24]} 56. d7 {[%emt 0:00:36]} g4 {[%emt 0:01:47]} 57. Re4 {[%emt 0:01:26]} 1-0

[Event "23rd OIBM 2019"]
[Site "Gmund am Tegernsee"]
[Date "2019.10.31"]
[Round "6.7"]
[White "Santos Latasa, Jaime"]
[Black "Morawietz, Dieter"]
[Result "1/2-1/2"]
[ECO "E45"]
[WhiteElo "2580"]
[BlackElo "2419"]
[Annotator "RC"]
[PlyCount "134"]
[EventDate "2019.10.17"]
[EventType "swiss"]
[EventCountry "GER"]
[SourceTitle "playchess.com"]
[Source "ChessBase"]
[SourceQuality "1"]
[TimeControl "40/5400+30:1800+30"]

1. d4 {[%emt 0:00:00]} Nf6 {[%emt 0:00:00]} 2. c4 {[%emt 0:00:00]} e6 {[%emt 0:00:00]} 3. Nc3 {[%emt 0:00:00]} Bb4 {[%emt 0:00:00]} 4. e3 {[%emt 0:00:00]} b6 {[%emt 0:00:22]} 5. Nge2 {[%emt 0:00:00]} Ba6 {[%emt 0:00:13]} 6. a3 {[%emt 0:00:04]} Bxc3+ {[%emt 0:02:15]} 7. Nxc3 {[%emt 0:00:24]} d5 {[%emt 0:00:10]} 8. b3 {[%emt 0:00:08]} Nc6 {[%emt 0:02:59]} 9. a4 {[%emt 0:01:11]} O-O {[%emt 0:00:13]} 10. Be2 {[%emt 0:00:36]} Re8 {[%emt 0:06:46]} 11. a5 {[%emt 0:06:21]} e5 {[%emt 0:25:05]} 12. dxe5 {[%emt 0:04:33]} Nxe5 {[%emt 0:01:03]} 13. Nxd5 {[%emt 0:07:20]} Nxd5 {[%emt 0:00:52]} 14. Qxd5 {[%emt 0:00:37]} Qf6 {[%emt 0:09:14]} 15. Bb2 {[%emt 0:01:34]} Rad8 {[%emt 0:24:37]} 16. Qe4 {[%emt 0:00:24]} Nd3+ {[%emt 0:00:08]} 17. Bxd3 {[%emt 0:00:08]} Rxe4 {[%emt 0:00:05]} 18. Bxf6 {[%emt 0:00:05]} Rxd3 {[%emt 0:00:04]} 19. axb6 {[%emt 0:01:07]} axb6 {[%emt 0:00:10]} 20. Bg5 {[%emt 0:07:43]} h6 {[%emt 0:04:52]} 21. Rxa6 {[%emt 0:04:15]} Rxb3 {[%emt 0:01:04]} 22. Kd2 {[%emt 0:00:40]} hxg5 {[%emt 0:00:16]} 23. Rc1 {[%emt 0:00:24]} Rb2+ {[%emt 0:01:38]} 24. Ke1 {[%emt 0:00:32]} Rh4 {[%emt 0:00:20]} 25. Kf1 {[%emt 0:01:01]} Rxh2 {[%emt 0:00:06]} 26. Kg1 {[%emt 0:00:03]} Rh6 {[%emt 0:00:06]} 27. Ra3 {[%emt 0:01:19]} Rd6 {[%emt 0:01:13]} 28. c5 {[%emt 0:00:35]} Rdd2 {[%emt 0:02:19]} 29. cxb6 {[%emt 0:00:15]} cxb6 {[%emt 0:00:04]} 30. Rf1 {[%emt 0:00:08]} Kh7 {[%emt 0:04:46]} 31. Ra4 {[%emt 0:00:32]} Kg6 {[%emt 0:00:46]} 32. g4 {[%emt 0:00:10]} Kf6 {[%emt 0:04:54]} 33. Re4 {[%emt 0:00:11]} g6 {[%emt 0:00:20]} 34. Kg2 {[%emt 0:00:08]} b5 {[%emt 0:05:07]} 35. Kg3 {[%emt 0:00:35]} Rd7 {[%emt 0:02:16]} 36. Rc1 {[%emt 0:00:23]} Rdd2 {[%emt 0:01:33]} 37. Rf1 {[%emt 0:01:43]} Rd7 {[%emt 0:01:12]} 38. Rc1 {[%emt 0:00:05]} Rb7 {[%emt 0:00:07]} 39. Rc6+ {[%emt 0:00:06]} Kg7 {[%emt 0:00:06]} 40. Rc5 {[%emt 0:00:06]} b4 {[%emt 0:01:05]} 41. Rcc4 {[%emt 0:30:51]} b3 {[%emt 0:07:13]} 42. Rb4 {[%emt 0:00:00]} Rxb4 {[%emt 0:00:53]} 43. Rxb4 {[%emt 0:00:00]} Kf6 {[%emt 0:00:16]} 44. Rb5 {[%emt 0:00:00]} Ke6 {[%emt 0:00:16]} 45. Rxg5 {[%emt 0:00:00]} Rc2 {[%emt 0:02:59]} 46. Rb5 {[%emt 0:00:00]} b2 {[%emt 0:00:04]} 47. f3 {[%emt 0:00:00]} Kd6 {[%emt 0:00:31]} 48. Kf4 {[%emt 0:00:00]} Kc6 {[%emt 0:01:39]} 49. Rb8 {[%emt 0:00:00]} f6 {[%emt 0:03:00]} 50. e4 {[%emt 0:00:00]} Kc5 {[%emt 0:08:06]} 51. g5 {[%emt 0:00:00]} f5 {[%emt 0:00:07]} 52. Ke5 {[%emt 0:00:00]} fxe4 {[%emt 0:00:17]} 53. fxe4 {[%emt 0:00:00]} Rf2 {[%emt 0:06:06]} 54. Ke6 {[%emt 0:00:00]} Kd4 {[%emt 0:00:21]} 55. e5 {[%emt 0:00:00]} Kc3 {[%emt 0:00:16]} 56. Rc8+ {[%emt 0:00:00]} Kd3 {[%emt 0:01:06]} 57. Rb8 {[%emt 0:00:00]} Kc2 {[%emt 0:01:35]} 58. Rc8+ {[%emt 0:00:00]} Kd2 {[%emt 0:00:16]} 59. Rb8 {[%emt 0:00:00]} Kc1 {[%emt 0:02:08]} 60. Kd6 {[%emt 0:00:00]} b1=Q {[%emt 0:00:19]} 61. Rxb1+ {[%emt 0:00:00]} Kxb1 {[%emt 0:00:15]} 62. e6 {[%emt 0:00:00]} Kc2 {[%emt 0:00:06]} 63. Ke5 {[%emt 0:00:00]} Kd3 {[%emt 0:03:19]} 64. e7 {[%emt 0:00:00]} Re2+ {[%emt 0:00:08]} 65. Kf6 {[%emt 0:00:00]} Kd4 {[%emt 0:00:07]} 66. Kxg6 {[%emt 0:00:00]} Rxe7 {[%emt 0:00:05]} 67. Kf6 {[%emt 0:00:00]} Ra7 1/2-1/2